bitfinex-derivatives/quotes_SOLF0:USTF0_20241103
["timestamp","ask_amount","ask_price","bid_price","bid_amount"]
[1730656726028,6.67595581,161.06,160.99,6.67595581]
[1730656726029,9.79595581,161.06,160.99,6.67595581]
[1730656726221,3.1064,161.02,160.99,9.78265581]
[1730656727633,6.67595581,161.05,160.99,6.67595581]
[1730656727834,9.35125581,161.05,160.98,6.67595581]
[1730656728039,5.42906357,161.04,160.98,6.67595581]
[1730656728244,3.1066,161.01,160.98,6.67595581]
[1730656728430,4.04396357,161.0,160.98,6.67595581]
[1730656728630,4.04396357,160.99,160.98,6.67595581]
[1730656728830,4.04396357,160.99,160.98,9.78295581]
[1730656729631,6.2266,161.01,160.98,9.78295581]
[1730656729835,4.04304901,161.0,160.98,9.78295581]
[1730656730039,4.04304901,160.99,160.98,9.78295581]
[1730656732543,4.04304901,160.99,160.98,6.67595581]
[1730656733233,3.1066,161.0,160.98,6.67595581]
[1730656733742,4.04209135,160.99,160.98,6.67595581]
[1730656734134,4.04209135,160.99,160.95,6.67595581]
[1730656734436,10.71804716,160.98,160.92,6.67595581]
[1730656734743,3.1078,160.95,160.92,9.78415581]
[1730656734944,4.04209135,160.94,160.9,6.67595581]
[1730656735134,4.04209135,160.93,160.9,6.67595581]
[1730656735334,4.04209135,160.92,160.9,6.67595581]
[1730656735639,4.04209135,160.91,160.9,6.67595581]
[1730656736345,4.04209135,160.91,160.9,9.78445581]
[1730656736744,6.67595581,160.96,160.9,9.78445581]
[1730656736944,3.1079,160.94,160.9,9.78445581]
[1730656737237,4.03744736,160.93,160.9,9.78445581]
[1730656737447,4.03744736,160.92,160.9,6.67595581]
[1730656737640,3.12,160.94,160.91,6.67595581]
[1730656737838,4.03512664,160.93,160.91,6.67595581]
[1730656738035,4.03512664,160.92,160.91,9.78435581]
[1730656738243,2.7467,160.97,160.91,6.67595581]
[1730656738547,2.7467,160.97,160.86,59.35042163]
[1730656738548,6.2274,160.96,160.93,6.67595581]
[1730656738739,4.0330996,160.95,160.93,6.67595581]
[1730656739046,4.0330996,160.94,160.93,3.108]
[1730656740041,4.0330996,160.94,160.93,9.78395581]
[1730656741145,3.1072,160.97,160.94,3.1077]
[1730656741346,4.03154525,160.96,160.94,3.1077]
[1730656741542,4.03154525,160.95,160.94,3.1077]
[1730656742835,3.1072,160.97,160.94,3.1077]
[1730656743036,4.02929188,160.96,160.94,3.1077]
[1730656743348,4.02929188,160.95,160.94,3.1077]
[1730656744452,10.70524769,160.95,160.89,6.67595581]
[1730656744639,4.4739,160.98,160.74,24.852]
[1730656744640,10.70524769,160.94,160.88,6.67595581]
[1730656744843,9.79595581,160.94,160.88,6.67595581]
[1730656745348,3.1083,160.92,160.88,6.67595581]
[1730656745649,9.79595581,160.94,160.88,6.67595581]
[1730656745847,3.1081,160.93,160.89,3.1086]
[1730656746347,9.79595581,160.94,160.89,3.1086]
[1730656746546,3.1082,160.92,160.89,3.1086]
[1730656746848,9.79595581,160.94,160.89,3.1086]
[1730656747549,3.1081,160.93,160.9,3.1085]
[1730656754366,3.1081,160.93,160.89,6.67595581]
[1730656754367,3.1074,160.96,160.93,3.108]
[1730656754658,9.41195581,161.03,160.96,6.67595581]
[1730656754848,7.04139402,161.02,160.97,6.67595581]
[1730656755050,7.04139402,161.02,160.95,6.67595581]
[1730656755051,10.59734983,161.01,160.95,6.67595581]
[1730656755365,10.59734983,161.0,160.94,6.67595581]
[1730656755553,3.92139402,160.99,160.94,6.67595581]
[1730656755747,3.1073,160.97,160.94,6.67595581]
[1730656760161,9.79595581,160.98,160.92,6.67595581]
[1730656760360,3.1079,160.94,160.91,6.67595581]
[1730656761368,3.1079,160.94,160.91,9.78425581]
[1730656763271,6.2279,160.94,160.91,9.78425581]
[1730656764572,3.12,160.94,160.92,6.67595581]
[1730656764875,3.12,160.96,160.92,6.67595581]
[1730656765070,3.12,160.96,160.94,6.67595581]
[1730656765369,4.4552,160.97,160.94,6.67595581]
[1730656766172,4.4552,160.97,160.95,3.1074]
[1730656768279,3.1074,160.96,160.94,6.67595581]
[1730656769280,4.4552,160.97,160.95,3.1076]
[1730656769782,7.5625,160.97,160.94,9.78375581]
[1730656774083,60.85312675,161.01,160.96,6.67595581]
[1730656774274,7.04063096,161.0,160.98,6.67595581]
[1730656774586,3.12,161.0,160.98,6.67595581]
[1730656774881,2.6874,161.03,160.98,6.67595581]
[1730656775185,2.6874,161.03,160.92,3.12]
[1730656775186,3.12,161.02,160.99,6.67595581]
[1730656775481,7.04015371,161.02,160.99,6.67595581]
[1730656775677,3.12,161.02,160.99,6.67595581]
[1730656776078,6.2264,161.02,160.99,9.78275581]
[1730656776675,3.1061,161.03,161.0,3.1066]
[1730656780783,3.12,161.04,161.0,3.1066]
[1730656780984,4.4003,161.06,161.02,3.1061]
[1730656781185,4.4003,161.06,161.02,9.78205581]
[1730656781389,3.1059,161.04,161.02,9.78205581]
[1730656781577,4.4003,161.06,161.02,9.78205581]
[1730656782084,4.4003,161.06,161.03,3.106]
[1730656782284,4.4003,161.06,161.04,6.67595581]
[1730656782997,7.5059,161.06,161.04,6.67595581]
[1730656784593,63.9346082,161.08,161.05,3.1057]
[1730656784794,63.9494082,161.08,161.05,6.67595581]
[1730656785489,67.0545082,161.08,161.05,9.78155581]
[1730656786096,63.9345082,161.08,161.05,9.78155581]
[1730656786491,60.8294082,161.08,161.06,3.1054]
[1730656786697,9.79595581,161.09,161.04,6.67595581]
[1730656787994,3.1056,161.06,161.04,6.67595581]
[1730656800904,1.3607,161.11,161.05,6.67595581]
[1730656801105,1.3607,161.11,161.08,6.67595581]
[1730656801603,3.1047,161.1,161.08,6.67595581]
[1730656801807,1.3607,161.11,161.08,6.67595581]
[1730656801990,3.1046,161.11,161.09,3.1049]
[1730656802601,8.04795581,161.16,161.08,6.67595581]
[1730656802808,3.12,161.15,161.11,6.67595581]
[1730656803399,3.104,161.14,161.11,6.67595581]
[1730656803698,1.372,161.16,161.13,6.67595581]
[1730656803900,3.1035,161.17,161.13,9.77985581]
[1730656804103,3.12,161.18,161.13,9.77985581]
[1730656804301,3.12,161.18,161.13,6.67595581]
[1730656804800,3.12,161.18,161.14,6.67595581]
[1730656804998,3.12,161.18,161.15,3.1036]
[1730656805197,3.12,161.2,161.15,3.1036]
[1730656805405,3.1029,161.2,161.16,9.77935581]
[1730656805706,1.3143,161.21,161.16,6.67595581]
[1730656805707,4.4343,161.21,161.16,6.67595581]
[1730656807204,6.67595581,161.2,161.14,6.67595581]
[1730656808206,3.1033,161.18,161.14,9.77975581]
[1730656808503,5.8455,161.21,161.16,6.67595581]
[1730656808702,3.1028,161.2,161.17,9.77915581]
[1730656808909,3.12,161.23,161.19,6.67595581]
[1730656809106,6.67595581,161.25,161.19,6.67595581]
[1730656809107,3.12,161.24,161.19,6.67595581]
[1730656809507,3.1026,161.21,161.19,6.67595581]
[1730656810193,4.4537,161.25,161.2,6.67595581]
[1730656810395,1.2732,161.28,161.24,6.67595581]
[1730656810597,3.09659544,161.39,161.24,6.67595581]
[1730656810598,3.12,161.29,161.24,6.67595581]
[1730656810800,3.12,161.3,161.26,6.67595581]
[1730656811306,3.12,161.32,161.29,6.67595581]
[1730656812007,3.1008,161.31,161.29,6.67595581]
[1730656812217,5.7652,161.33,161.29,6.67595581]
[1730656812808,3.1008,161.3,161.26,6.67595581]
[1730656813008,6.67595581,161.32,161.26,6.67595581]
[1730656815111,3.1012,161.29,161.26,6.67595581]
[1730656816207,3.1013,161.28,161.26,6.67595581]
[1730656821006,3.101,161.3,161.27,6.67595581]
[1730656822121,6.67595581,161.32,161.26,6.67595581]
[1730656823014,2.6452,161.33,161.27,6.67595581]
[1730656823209,5.7452,161.33,161.29,6.67595581]
[1730656824115,3.1007,161.32,161.29,6.67595581]
[1730656824303,5.7452,161.33,161.29,6.67595581]
[1730656824921,3.1008,161.3,161.29,6.67595581]
[1730656825615,3.1007,161.31,161.29,6.67595581]
[1730656830617,6.67595581,161.4,161.3,6.67595581]
[1730656830820,3.1,161.4,161.34,6.67595581]
[1730656831820,3.0998,161.36,161.34,6.67595581]
[1730656832008,3.1,161.4,161.34,6.67595581]
[1730656832614,3.0996,161.37,161.34,9.77595581]
[1730656832819,3.1,161.41,161.36,6.67595581]
[1730656833220,3.1,161.41,161.35,6.67595581]
[1730656833716,6.67595581,161.4,161.35,6.67595581]
[1730656833920,6.67595581,161.37,161.31,6.67595581]
[1730656834226,9.77595581,161.37,161.31,6.67595581]
[1730656834620,9.77595581,161.37,161.27,3.1]
[1730656834621,6.67595581,161.35,161.3,6.67595581]
[1730656835830,6.67595581,161.34,161.28,6.67595581]
[1730656836027,6.67595581,161.32,161.27,6.67595581]
[1730656836214,3.1,161.33,161.27,6.67595581]
[1730656836215,9.77595581,161.33,161.27,6.67595581]
[1730656836416,9.77595581,161.33,161.28,6.67595581]
[1730656836619,9.77595581,161.33,161.27,6.67595581]
[1730656837923,3.1012,161.29,161.27,6.67595581]
[1730656839021,3.1012,161.28,161.27,6.67595581]
[1730656839619,6.67595581,161.31,161.25,6.67595581]
[1730656839819,1.3207,161.3,161.25,6.67595581]
[1730656840021,7.99665581,161.3,161.24,6.67595581]
[1730656840227,3.1,161.29,161.24,6.67595581]
[1730656840425,3.1017,161.26,161.24,6.67595581]
[1730656841034,3.1017,161.26,161.25,6.67595581]
[1730656843327,3.1017,161.26,161.24,6.67595581]
[1730656843727,3.1011,161.29,161.26,3.1015]
[1730656843940,63.83702331,161.34,161.28,6.67595581]
[1730656844529,70.51297912,161.34,161.28,6.67595581]
[1730656845335,3.101,161.29,161.28,6.67595581]
[1730656848247,3.101,161.29,161.23,3.1]
[1730656848248,3.1014,161.28,161.27,6.67595581]
[1730656857854,3.101,161.3,161.27,6.67595581]
[1730656858045,3.1,161.33,161.29,6.67595581]
[1730656858544,3.1008,161.31,161.29,6.67595581]
[1730656858846,3.1,161.33,161.29,6.67595581]
[1730656859052,3.1,161.33,161.28,6.67595581]
[1730656859252,6.67595581,161.32,161.28,6.67595581]
[1730656860251,6.67595581,161.31,161.24,6.67595581]
[1730656860558,6.67595581,161.29,161.23,6.67595581]
[1730656860857,3.1018,161.26,161.24,6.67595581]
[1730656862852,11.11865581,161.29,161.23,6.67595581]
[1730656863056,3.1026,161.22,161.19,42.67425796]
[1730656863361,6.67595581,161.26,161.19,42.67425796]
[1730656863563,3.1023,161.23,161.21,6.67595581]
[1730656863748,1.3206,161.28,161.22,6.67595581]
[1730656864058,3.1021,161.24,161.22,6.67595581]
[1730656865454,3.1022,161.23,161.22,6.67595581]
[1730656868464,3.1022,161.23,161.21,6.67595581]
[1730656869162,3.1,161.25,161.21,6.67595581]
[1730656869365,3.1027,161.21,161.19,42.67425796]
[1730656869760,3.1028,161.2,161.19,42.67425796]
[1730656869960,3.1028,161.2,161.19,35.99830215]
[1730656870361,3.1027,161.21,161.19,35.99830215]
[1730656870564,6.67595581,161.21,161.16,6.67595581]
[1730656870860,9.77595581,161.21,161.15,6.67595581]
[1730656871061,3.1029,161.2,161.15,6.67595581]
[1730656871266,9.77595581,161.21,161.15,6.67595581]
[1730656871667,3.1035,161.17,161.15,6.67595581]
[1730656877071,3.1,161.21,161.16,6.67595581]
[1730656877367,4.4142,161.23,161.2,6.67595581]
[1730656877562,3.1022,161.23,161.2,6.67595581]
[1730656877964,3.1,161.24,161.2,6.67595581]
[1730656878168,3.1024,161.22,161.2,6.67595581]
[1730656878368,7.96515581,161.28,161.2,6.67595581]
[1730656878563,3.1023,161.23,161.2,6.67595581]
[1730656879068,3.1,161.26,161.2,6.67595581]
[1730656879762,9.77595581,161.26,161.2,6.67595581]
[1730656880362,3.1024,161.22,161.2,6.67595581]
[1730656882765,3.1026,161.21,161.2,6.67595581]
[1730656883284,3.1026,161.21,161.19,6.67595581]
[1730656884471,6.67595581,161.24,161.19,6.67595581]
[1730656884472,3.1028,161.2,161.19,6.67595581]
[1730656885366,3.1026,161.21,161.19,6.67595581]
[1730656889073,3.1023,161.23,161.2,6.67595581]
[1730656889271,3.1023,161.23,161.22,6.67595581]
[1730656890273,3.1025,161.22,161.2,6.67595581]
[1730656892575,3.1022,161.23,161.2,9.77865581]
[1730656892772,3.1022,161.23,161.22,6.67595581]
[1730656894176,6.67595581,161.24,161.17,6.67595581]
[1730656894677,3.1031,161.19,161.17,6.67595581]
[1730656896370,3.1029,161.2,161.18,6.67595581]
[1730656896881,6.67595581,161.24,161.18,6.67595581]
[1730656898477,9.77595581,161.26,161.18,9.77905581]
[1730656898683,9.77595581,161.26,161.2,6.67595581]
[1730656899684,3.1022,161.23,161.21,6.67595581]
[1730656899879,1.2892,161.28,161.22,3.1023]
[1730656900185,6.67595581,161.24,161.18,6.67595581]
[1730656900387,6.67595581,161.22,161.16,6.67595581]
[1730656900579,9.77595581,161.22,161.16,6.67595581]
[1730656900777,11.12635581,161.22,161.16,6.67595581]
[1730656902280,11.12635581,161.22,161.13,6.67595581]
[1730656902281,6.67595581,161.19,161.13,6.67595581]
[1730656902485,6.67595581,161.18,161.12,6.67595581]
[1730656902783,9.77595581,161.18,161.12,6.67595581]
[1730656903476,3.1039,161.15,161.12,6.67595581]
[1730656905888,9.77595581,161.18,161.12,6.67595581]
[1730656906185,3.104,161.14,161.12,6.67595581]
[1730656908000,6.67595581,161.15,161.09,6.67595581]
[1730656908205,3.1,161.14,161.08,6.67595581]
[1730656908505,5.7984,161.14,161.08,6.67595581]
[1730656910307,3.1046,161.11,161.08,6.67595581]
[1730656912702,6.67595581,161.13,161.08,6.67595581]
[1730656912906,3.1051,161.08,161.06,6.67595581]
[1730656913594,5.7984,161.14,161.05,59.28150461]
[1730656913595,6.67595581,161.13,161.07,6.67595581]
[1730656913793,3.1047,161.1,161.07,9.78105581]
[1730656916401,1.3794,161.17,161.09,6.67595581]
[1730656916610,1.3794,161.17,161.13,6.67595581]
[1730656917005,3.1036,161.16,161.13,6.67595581]
[1730656917403,1.3794,161.17,161.13,6.67595581]
[1730656918215,3.1041,161.14,161.1,6.67595581]
[1730656918606,3.1041,161.14,161.11,6.67595581]
[1730656920109,1.3794,161.17,161.13,6.67595581]
[1730656920322,3.1035,161.17,161.13,9.78005581]
[1730656921413,3.1036,161.16,161.13,6.67595581]
[1730656922408,4.4188,161.19,161.14,9.77975581]
[1730656923305,41.92220302,161.2,161.17,6.67595581]
[1730656923810,41.92220302,161.2,161.16,9.77945581]
[1730656923811,45.02510302,161.2,161.16,9.77945581]
[1730656924111,41.92220302,161.2,161.16,6.67595581]
[1730656924304,3.1031,161.19,161.16,6.67595581]
[1730656928520,3.1031,161.19,161.16,9.77945581]
[1730656930110,3.1035,161.17,161.14,6.67595581]
[1730656930318,6.67595581,161.19,161.13,6.67595581]
[1730656931413,6.67595581,161.19,161.09,3.1]
[1730656931414,6.67595581,161.18,161.11,6.67595581]
[1730656931613,3.1,161.17,161.11,6.67595581]
[1730656931816,6.67595581,161.16,161.1,6.67595581]
[1730656932113,6.67595581,161.15,161.09,6.67595581]
[1730656934816,3.1045,161.12,161.09,6.67595581]
[1730656937423,3.1045,161.11,161.09,6.67595581]
[1730656938336,3.1,161.13,161.09,6.67595581]
[1730656938530,6.2043,161.13,161.1,9.78065581]
[1730656938827,3.1043,161.13,161.1,9.78065581]
[1730656939018,3.1043,161.13,161.1,6.67595581]
[1730656939221,3.1,161.15,161.1,6.67595581]
[1730656939418,3.1043,161.12,161.1,6.67595581]
[1730656939817,9.77595581,161.15,161.05,56.17600461]
[1730656940017,3.1046,161.11,161.07,9.78105581]
[1730656941127,3.1046,161.11,161.09,6.67595581]
[1730656941435,1.3363,161.16,161.1,6.67595581]
[1730656941646,4.4363,161.16,161.12,6.67595581]
[1730656941934,3.1044,161.12,161.09,6.67595581]
[1730656942830,3.1044,161.12,161.09,9.78085581]
[1730656946338,11.11225581,161.16,161.11,6.67595581]
[1730656946836,3.1043,161.12,161.11,6.67595581]
[1730656947923,3.1047,161.11,161.09,6.67595581]
[1730656948127,4.4363,161.16,161.08,6.67595581]
[1730656948128,3.1,161.12,161.08,6.67595581]
[1730656949250,3.1,161.12,161.05,6.67595581]
[1730656949251,6.67595581,161.1,161.05,6.67595581]
[1730656949732,3.1052,161.08,161.05,6.67595581]
[1730656950531,3.1054,161.07,161.05,6.67595581]
[1730656951950,3.1057,161.05,161.03,6.67595581]
[1730656952452,6.67595581,161.07,161.01,6.67595581]
[1730656952739,3.106,161.04,161.01,6.67595581]
[1730656953533,3.106,161.04,161.01,9.78235581]
[1730656953840,7.95155581,161.07,161.01,6.67595581]
[1730656954048,3.1062,161.03,161.01,6.67595581]
[1730656954230,6.67595581,161.06,161.0,6.67595581]
[1730656954645,3.1064,161.01,161.0,6.67595581]
[1730656955035,3.1064,161.01,160.98,9.78295581]
[1730656957746,3.1064,161.01,161.0,6.67595581]
[1730656958748,3.1,161.03,161.0,6.67595581]
[1730656958937,3.1063,161.02,161.0,6.67595581]
[1730656959336,3.1,161.03,161.0,6.67595581]
[1730656959537,3.1059,161.04,161.01,9.78235581]
[1730656959734,3.1,161.05,161.01,6.67595581]
[1730656960641,3.1059,161.04,161.01,6.67595581]
[1730656961641,3.1059,161.04,161.01,9.78235581]
[1730656963640,3.1,161.05,161.01,9.78235581]
[1730656963846,6.67595581,161.1,161.04,6.67595581]
[1730656964039,3.1,161.07,161.03,6.67595581]
[1730656964341,6.2055,161.07,161.03,9.78185581]
[1730656964648,3.1,161.07,161.03,9.78185581]
[1730656965237,3.1055,161.06,161.03,9.78185581]
[1730656966737,6.2053,161.07,161.04,6.67595581]
[1730656967547,3.1051,161.08,161.05,3.1056]
[1730656967747,3.1051,161.08,161.04,6.67595581]
[1730656968143,4.4301,161.09,161.04,9.78175581]
[1730656968144,3.1053,161.07,161.04,9.78175581]
[1730656969262,3.1053,161.07,161.04,6.67595581]
[1730656969451,3.1056,161.06,161.04,6.67595581]
[1730656969853,3.1,161.09,161.04,9.78165581]
[1730656970057,3.1053,161.07,161.04,9.78165581]
[1730656972348,6.2051,161.09,161.05,9.78145581]
[1730656972544,1.3909,161.11,161.07,6.67595581]
[1730656972757,3.1,161.12,161.08,6.67595581]
[1730656972953,6.2045,161.12,161.08,9.78085581]
[1730656973262,3.1,161.12,161.08,9.78085581]
[1730656973444,3.1045,161.11,161.08,9.78085581]
[1730656981368,3.1,161.13,161.1,6.67595581]
[1730656981570,9.35875581,161.18,161.11,6.67595581]
[1730656981870,3.1,161.17,161.11,6.67595581]
[1730656982860,6.67595581,161.15,161.1,6.67595581]
[1730656983057,3.1043,161.12,161.1,6.67595581]
[1730656983271,6.67595581,161.15,161.1,6.67595581]
[1730656983863,3.1047,161.11,161.08,6.67595581]
[1730656986666,3.1047,161.11,161.02,3.05071004]
[1730656986667,3.1059,161.04,161.03,6.67595581]
[1730656986872,9.77595581,161.09,161.03,6.67595581]
[1730656988269,3.1056,161.06,161.03,6.67595581]
[1730656988669,9.77595581,161.09,161.03,6.67595581]
[1730656988979,3.1058,161.05,161.01,6.67595581]
[1730656989576,3.1059,161.04,161.01,9.78235581]
[1730656993170,3.1059,161.04,160.97,3.1]
[1730656993171,6.67595581,161.06,161.0,6.67595581]
[1730656993475,6.67595581,161.07,161.01,6.67595581]
[1730656994274,3.1062,161.03,161.01,6.67595581]
[1730656994458,9.36545581,161.1,161.02,6.67595581]
[1730656994657,3.1,161.09,161.05,6.67595581]
[1730656994861,3.1054,161.07,161.05,6.67595581]
[1730656995078,9.36545581,161.1,161.05,6.67595581]
[1730656995267,9.36545581,161.1,160.96,3.1]
[1730656995268,5.7895,161.1,161.06,6.67595581]
[1730656995463,1.3516,161.12,161.08,6.67595581]
[1730656995769,6.67595581,161.13,161.1,6.67595581]
[1730656995770,3.1,161.13,161.1,6.67595581]
[1730656995966,3.1,161.13,161.11,6.67595581]
[1730656996268,2.6803,161.15,161.11,6.67595581]
[1730656997068,3.1041,161.14,161.11,6.67595581]
[1730656997272,6.67595581,161.2,161.13,6.67595581]
[1730656997568,3.1033,161.18,161.15,6.67595581]
[1730656997770,45.02537024,161.19,161.14,6.67595581]
[1730656998670,3.1034,161.17,161.14,6.67595581]
[1730657000164,45.02537024,161.19,161.14,6.67595581]
[1730657000360,3.1033,161.18,161.14,6.67595581]
[1730657001168,3.1034,161.17,161.14,6.67595581]
[1730657004080,3.1,161.19,161.15,6.67595581]
[1730657004271,3.1032,161.18,161.15,6.67595581]
[1730657005074,3.1037,161.16,161.13,6.67595581]
[1730657005785,3.1039,161.14,161.13,6.67595581]
[1730657006779,3.1038,161.15,161.13,6.67595581]
[1730657020190,1.2877,161.18,161.13,6.67595581]
[1730657020395,3.1039,161.14,161.13,6.67595581]
[1730657021698,3.1042,161.13,161.11,6.67595581]
[1730657021991,3.1,161.15,161.11,6.67595581]
[1730657022602,3.1,161.15,161.1,6.67595581]
[1730657023395,3.1046,161.11,161.1,6.67595581]
[1730657025098,3.105,161.09,161.08,6.67595581]
[1730657025303,9.77595581,161.11,161.05,6.67595581]
[1730657026306,6.67595581,161.1,161.04,6.67595581]
[1730657026494,3.1057,161.05,161.04,6.67595581]
[1730657026700,6.67595581,161.08,161.02,6.67595581]
[1730657027197,3.1059,161.04,161.02,6.67595581]
[1730657027400,9.77595581,161.07,161.01,6.67595581]
[1730657027600,6.67595581,161.06,161.0,6.67595581]
[1730657027803,3.1066,161.0,160.98,6.67595581]
[1730657028008,3.1,161.02,160.97,6.67595581]
[1730657028300,3.1068,161.0,160.95,6.67595581]
[1730657028486,9.77595581,161.01,160.95,6.67595581]
[1730657029097,3.1069,160.99,160.95,9.78355581]
[1730657031395,6.2065,161.01,160.97,9.78305581]
[1730657031703,3.1,161.01,160.98,6.67595581]
[1730657033002,6.2065,161.01,160.98,6.67595581]
[1730657033199,3.1,161.01,160.98,9.78285581]
[1730657034505,3.1,161.01,160.98,6.67595581]
[1730657034712,3.1,161.01,160.97,6.67595581]
[1730657035109,3.1068,161.0,160.97,6.67595581]
[1730657035699,3.1,161.01,160.98,9.78285581]
[1730657036320,3.1,161.01,160.98,3.1069]
[1730657038305,6.2064,161.01,160.98,3.1069]
[1730657040210,6.2064,161.01,160.97,6.67595581]
[1730657040211,3.1,161.01,160.97,6.67595581]
[1730657040509,3.1062,161.02,160.98,6.67595581]
[1730657040905,3.1062,161.02,160.98,9.78285581]
[1730657043410,3.1063,161.02,160.99,3.1067]
[1730657043712,3.1063,161.02,160.98,6.67595581]
[1730657043913,3.1063,161.02,160.98,9.78285581]
[1730657044408,3.1063,161.02,160.98,6.67595581]
[1730657045310,3.1063,161.02,160.99,3.1067]
[1730657046612,2.6459,161.09,161.01,6.67595581]
[1730657046613,3.08,161.06,161.01,6.67595581]
[1730657047006,3.1065,161.01,160.98,9.78275581]
[1730657047815,6.67595581,161.03,160.97,6.67595581]
[1730657048014,6.67595581,161.01,160.95,6.67595581]
[1730657048618,3.1069,160.99,160.96,3.1073]
[1730657050221,3.1069,160.99,160.97,6.67595581]
[1730657051221,3.1062,161.02,160.99,3.1067]
[1730657051421,3.1062,161.02,161.0,6.67595581]
[1730657053710,6.67595581,161.08,161.0,6.67595581]
[1730657053915,3.08,161.07,161.02,3.1061]
[1730657054120,6.67595581,161.05,160.98,6.67595581]
[1730657054317,6.67595581,161.03,160.97,6.67595581]
[1730657055432,3.1064,161.02,160.98,3.1069]
[1730657056144,3.1064,161.02,160.99,3.1068]
[1730657057551,6.67595581,161.05,160.99,6.67595581]
[1730657057846,3.08,161.05,161.01,6.67595581]
[1730657058231,6.1858,161.05,161.02,3.1061]
[1730657059442,3.08,161.05,161.01,6.67595581]
[1730657059737,3.1062,161.03,160.99,6.67595581]
[1730657061231,3.1062,161.03,161.0,3.1066]
[1730657061724,3.1062,161.03,161.01,6.67595581]
[1730657061938,3.1062,161.03,161.01,9.78235581]
[1730657062821,3.08,161.05,161.02,3.1062]
[1730657063219,6.67595581,161.07,161.02,3.1062]
[1730657063826,3.1058,161.05,161.02,3.1062]
[1730657064333,3.1059,161.04,161.01,9.78235581]
[1730657064522,6.67595581,161.07,161.01,6.67595581]
[1730657064725,6.67595581,161.05,160.99,6.67595581]
[1730657064921,3.1062,161.03,161.0,3.1066]
[1730657074342,3.1062,161.03,161.01,6.67595581]
[1730657077238,3.1059,161.04,161.02,3.1062]
[1730657077537,3.08,161.05,161.02,9.78215581]
[1730657078035,6.67595581,161.08,161.02,6.67595581]
[1730657078237,2.7322,161.09,160.97,3.04364196]
[1730657078238,2.7322,161.09,161.06,3.1054]
[1730657078431,1.3252,161.09,161.04,6.67595581]
[1730657079230,3.1053,161.07,161.04,9.78165581]
[1730657079431,1.3252,161.09,161.03,6.67595581]
[1730657079645,3.1058,161.05,161.03,6.67595581]
[1730657084036,6.67595581,161.08,161.01,6.67595581]
[1730657084233,3.106,161.04,161.01,9.78235581]
[1730657087648,3.106,161.04,161.02,3.1062]
[1730657089650,3.106,161.04,161.01,9.78225581]
[1730657091459,3.106,161.04,161.02,3.1062]
[1730657102753,4.96,161.05,161.01,6.67595581]
[1730657103857,3.106,161.04,161.01,9.78225581]
[1730657104363,4.96,161.05,161.03,6.67595581]
[1730657104659,4.96,161.05,161.04,9.78185581]
[1730657105757,4.96,161.05,161.03,6.67595581]
[1730657105959,4.96,161.05,161.03,3.1059]
[1730657106858,4.96,161.05,161.04,9.78185581]
[1730657107057,3.08,161.13,161.04,6.67595581]
[1730657107358,3.08,161.13,161.08,6.67595581]
[1730657107564,6.1842,161.13,161.1,3.1046]
[1730657107768,21.85400648,161.15,161.1,6.67595581]
[1730657107957,6.1839,161.15,161.11,3.1045]
[1730657108263,6.1839,161.15,161.11,9.78045581]
[1730657108454,7.1566,161.17,161.14,3.1039]
[1730657108648,7.1566,161.17,161.13,6.67595581]
[1730657108649,2.677,161.17,161.13,6.67595581]
[1730657109058,3.1037,161.16,161.13,9.77995581]
[1730657109965,3.1037,161.16,161.13,6.67595581]
[1730657110271,3.1041,161.14,161.1,6.67595581]
[1730657110966,3.1041,161.14,161.1,9.78055581]
[1730657111365,3.1041,161.14,161.1,6.67595581]
[1730657112355,3.1041,161.14,161.11,3.1045]
[1730657113767,3.1041,161.14,161.12,6.67595581]
[1730657115069,6.1832,161.18,161.15,3.1037]
[1730657115366,3.08,161.18,161.15,6.67595581]
[1730657116273,3.1035,161.17,161.15,6.67595581]
[1730657118677,7.5535,161.17,161.15,6.67595581]
[1730657121264,3.1035,161.16,161.15,6.67595581]
[1730657123574,11.12595581,161.17,161.12,6.67595581]
[1730657125278,3.1041,161.14,161.12,6.67595581]
[1730657127571,3.1041,161.13,161.12,6.67595581]
[1730657133576,3.1041,161.13,161.1,9.78055581]
[1730657134586,1.04,161.12,161.1,9.78055581]
[1730657134980,1.04,161.12,161.11,3.1045]
[1730657136681,4.1443,161.12,161.1,6.67595581]
[1730657139677,1.04,161.12,161.08,6.67595581]